Cogmind - Beta 15 @@@ ROGUE MODE // 2025.07.10 @ 18:49:24 Player: StaticNoob Result: Destroyed by G-67 Veteran with Field Laser Performance ------------- Evolutions (6) 3000 Regions Visited (14) 2800 Robots Destroyed (66) 330 Value Destroyed (2344) 2344 Prototype IDs (23) 460 Alien Tech Used (1) 200 Bonus (2660) 2660 TOTAL SCORE: 11794 Bonus ------- Follower Combat Kills 150 Registered with UFD 300 Met Optimus in HQ 500 Met Warlord at Base 500 MAIN.C Attacked Warlord 500 Warlord Defense Kills 710 Cogmind --------- Core Integrity 0/1150 Matter 128/300 Energy 31/100 System Corruption 14% Temperature Cool (9) Movement Treading (160) Location -4/Factory Parts ------- > --- POWER (2) -------- (None) > --- PROPULSION (6) --- Improved Treads > --- UTILITY (9) ------ Advanced Signal Interpreter Graphene Brace Improved System Shield > --- WEAPON (3) ------- High-powered Shock Rifle > --- INVENTORY (5) ---- Improved Transmission Jammer Peak State ------------ > --- POWER ------------ Light Antimatter Reactor Light Antimatter Reactor > --- PROPULSION ------- Cooled Aerolev Unit Gravmag Array Antigrav System Gyrokinetic Inverter Gyrokinetic Inverter > --- UTILITY ---------- Enhanced Optical Array Advanced Signal Interpreter Nanoactuators Advanced Actuator Array Improved Transmission Jammer Advanced ECM Suite Graphene Brace Improved Hacking Suite Improved System Shield > --- WEAPON ----------- Advanced Plasma Cannon Companion Sword Plasma Lance > --- INVENTORY -------- Light Fission Core Microactuators Vortex Cannon Vortex Cannon [Rating: 121] Favorites ----------- Power Ion Engine Engine Ion Engine Power Core Neutrino Core Reactor Light Antimatter Reactor Propulsion Light Treads Treads Light Treads Leg Shield Leg Wheel Subdweller Monowheel Hover Unit Gyrokinetic Inverter Flight Unit VTOL Module Utility Advanced Signal Interpreter Device Advanced ECM Suite Storage Large Storage Unit Processor Advanced Signal Interpreter Hackware Improved Hacking Suite Protection Improved Light Armor Plating Weapon Companion Sword Energy Gun Backup Laser III Energy Cannon Advanced Plasma Cannon Ballistic Gun Coil Gun Ballistic Cannon Assault Cannon Launcher Smartbomb Launcher Impact Weapon Maul Slashing Weapon Companion Sword Piercing Weapon Plasma Lance Build | -11 -10 -10 -8 -6 -6 -6 -5 -5 -5 -5 -5 -5 -4 -4 ------- Run | Yrd Mat Sub Scr Fac Low Low Fac Was Fac Upp Upp War Pro Fac Slots Evolved 12 | . . . . 8 . . 2 . . . . . . 2 Power 1 | . . . . . . . . . . . . . . 1 Propulsion 4 | . . . . 2 . . 2 . . . . . . . Utility 7 | . . . . 6 . . . . . . . . . 1 Weapon . | . . . . . . . . . . . . . . . Parts Attached 128 | 8 4 1 7 13 7 4 32 1 11 2 1 7 7 23 Power 15 | 1 . . 2 . 1 1 2 . 2 . . 2 . 4 Engine 3 | 1 . . 2 . . . . . . . . . . . Core 6 | . . . . . 1 1 2 . . . . . . 2 Reactor 6 | . . . . . . . . . 2 . . 2 . 2 Propulsion 35 | 2 . 1 2 . 3 3 10 . 7 . . 1 1 5 Treads 5 | 2 . . 1 . . . . . . . . . . 2 Leg 2 | . . . . . . . . . . . . . . 2 Wheel 2 | . . 1 1 . . . . . . . . . . . Hover 17 | . . . . . . . 9 . 5 . . 1 1 1 Flight 9 | . . . . . 3 3 1 . 2 . . . . . Utility 55 | 2 3 . 1 9 1 . 19 1 2 2 1 2 3 9 Device 34 | 1 . . . 5 . . 11 1 1 2 1 1 3 8 Storage 3 | 1 2 . . . . . . . . . . . . . Processor 7 | . 1 . 1 1 . . 3 . 1 . . . . . Hackware 7 | . . . . 2 . . 4 . . . . . . 1 Protection 4 | . . . . 1 1 . 1 . . . . 1 . . Artifact . | . . . . . . . . . . . . . . . Weapon 23 | 3 1 . 2 4 2 . 1 . . . . 2 3 5 Energy Gun 2 | 1 . . . . . . . . . . . . . 1 Energy Cannon 7 | . . . . 3 . . . . . . . 1 2 1 Ballistic Gun 4 | 2 . . 1 . . . . . . . . . . 1 Ballistic Cannon 2 | . 1 . 1 . . . . . . . . . . . Launcher 2 | . . . . 1 . . . . . . . 1 . . Special Weapon . | . . . . . . . . . . . . . . . Impact Weapon 1 | . . . . . . . . . . . . . . 1 Slashing Weapon 3 | . . . . . 1 . 1 . . . . . . 1 Piercing Weapon 2 | . . . . . 1 . . . . . . . 1 . Special Melee Weapon . | . . . . . . . . . . . . . . . Unidentified Prototypes 7 | . . . . 1 2 . . . 1 . 1 1 1 . Corrupted Parts 1 | . . . . . . . . . . . . . 1 . System Corruption 3 | . . . . . . . . . . . . . 3 . Parts Lost 78 | . . 1 . 13 . 5 12 . 8 2 1 1 6 29 Power 10 | . . . . 1 . 1 1 . 1 . 1 . . 5 Propulsion 26 | . . 1 . 2 . 4 6 . 4 1 . . 2 6 Utility 29 | . . . . 7 . . 4 . 3 1 . 1 2 11 Weapon 13 | . . . . 3 . . 1 . . . . . 2 7 Highest Loss Streak 13 | . . 1 . 12 . 4 7 . 8 2 1 1 6 13 To Critical Strikes . | . . . . . . . . . . . . . . . Average Backups 7 | 1 9 13 11 9 4 4 3 3 3 2 2 3 3 2 Power . | . 1 1 . 1 . . . 1 . . . . . . Propulsion . | . . . . 2 . . . . . . . . . . Utility 3 | . 4 5 5 1 2 4 1 1 1 . . . . 1 Weapon 3 | . 3 5 4 4 1 . . 1 1 2 2 3 3 1 Tool/Special . | . . . . . . . . . . . . . . . Unused Backups 25 | . . 6 16 2 1 . . . . . . . . . Power . | . . . . . . . . . . . . . . . Propulsion 5 | . . . 3 2 . . . . . . . . . . Utility 11 | . . 5 6 . . . . . . . . . . . Weapon 8 | . . 1 6 . 1 . . . . . . . . . Tool/Special 1 | . . . 1 . . . . . . . . . . . Average Slot Usage (%) 89 | . 100 100 98 84 42 28 76 94 97 99 89 84 87 70 Engine 7 | . 14 14 14 5 . . . . . . . 2 . . Treads 11 | . 28 22 19 12 . . . . . . . . . . Wheel 2 | . . 5 6 . . . . . . . . . . . Hover 9 | . . . . . . . 17 29 28 34 27 27 24 15 Flight 1 | . . . . . 18 9 4 . 3 . . . . . Device 9 | . 4 . . 20 2 . 17 17 17 20 22 20 19 21 Storage 7 | . 14 14 14 6 . . . . . . . . . . Processor 11 | . 9 14 14 6 6 6 9 11 12 13 11 11 11 9 Hackware 4 | . . . . 11 . . 9 17 15 11 11 11 8 7 Ballistic Gun 7 | . 17 14 14 3 . . . . . . . . . . Ballistic Cannon 7 | . 10 14 14 5 . . . . . . . . . . Slashing Weapon 3 | . . . . . 3 6 8 11 11 11 11 5 6 3 Peak Build Rating 121 | 9 10 10 26 51 41 29 91 87 95 98 92 100 94 121 Average Rating 44 | 5 8 9 19 47 26 18 65 83 90 96 90 84 89 83 On Entrance 48 | . 9 9 10 26 10 29 20 83 87 94 91 82 94 89 Naked Turns . | . . . . . . . . . . . . . . . Heaviest Build 54 | 13 29 29 39 53 14 14 34 27 31 34 34 40 41 54 Greatest Support 73 | 40 40 40 40 40 14 14 57 54 73 73 60 63 59 62 Greatest Overweight (x) 10 | 3 . 1 1 7 . 3 4 . . . . 1 . 10 Average Overweight (x) . | . . . . 1 . . . . . . . . . . Largest Inventory Capacity 15 | 8 15 15 15 15 15 5 5 5 5 5 5 5 5 5 Average Capacity 10 | 7 12 15 15 15 5 5 5 5 5 5 5 5 5 5 Most Carried 15 | 2 14 15 15 15 12 5 5 5 5 5 4 5 5 5 Average Carried 9 | 1 9 14 14 12 5 5 4 4 4 3 3 4 3 2 Final Capacity 15 | 8 15 15 15 15 5 5 5 5 5 5 5 5 5 5 Final Carried 15 | 2 14 15 15 13 5 5 4 5 3 3 3 5 2 1 Class Distribution -------------------- 56% | Mutant 19% | Hacker-Ninja 9% | Hacker-Mutant 3% | Infiltrator-Gladiator Dominant Class ---------------- Mutant | -10/Materials Mutant | -10/Subcaves Mutant | -8/Scraptown Hacker-Mutant | -6/Factory Sprinter | -6/Lower Caves Mutant | -6/Lower Caves Hacker-Ninja | -5/Factory Hacker-Ninja | -5/Waste Hacker-Ninja | -5/Factory Hacker-Ninja | -5/Upper Caves Hacker-Ninja | -5/Upper Caves Hacker-Ninja | -5/Warlord Infiltrator-Gladiator | -4/Proximity Caves Hacker-Gladiator | -4/Factory Resources | -11 -10 -10 -8 -6 -6 -6 -5 -5 -5 -5 -5 -5 -4 -4 ----------- Run | Yrd Mat Sub Scr Fac Low Low Fac Was Fac Upp Upp War Pro Fac Matter Collected 1945 | 169 149 137 95 59 164 181 326 . 64 73 . 273 190 65 Remotely . | . . . . . . . . . . . . . . . Salvage Created 2173 | 33 209 106 . 263 68 193 349 . 241 . . 119 153 439 Parts 133 | 5 26 6 . 18 2 15 10 . 18 . . 8 9 16 Haulers Intercepted 1 | . . . . . . . 1 . . . . . . . Recyclers Shooed 2 | 1 . . . . . . . . 1 . . . . . Parts Field Recycled . | . . . . . . . . . . . . . . . Retrieved Matter . | . . . . . . . . . . . . . . . Parts Self-Destructed 24 | . . . . . . 11 . . . . 6 . 7 . Prevented . | . . . . . . . . . . . . . . . Kills | -11 -10 -10 -8 -6 -6 -6 -5 -5 -5 -5 -5 -5 -4 -4 ------- Run | Yrd Mat Sub Scr Fac Low Low Fac Was Fac Upp Upp War Pro Fac Combat Hostiles Destroyed 49 | . 7 3 . 9 . 7 3 . 1 . . 10 3 6 Melee 17 | . . . . . . 7 3 . 1 . . . 3 3 Guns 7 | . 4 3 . . . . . . . . . . . . Cannons 11 | . 3 . . 5 . . . . . . . . . 3 AOE 14 | . . . . 4 . . . . . . . 10 . . Classes Destroyed 15 | 1 4 1 . 4 1 . 2 . 1 . . 1 . . Worker 1 | . . . . . . . . . 1 . . . . . Builder 4 | . . . . 1 . . 1 . 2 . . . . . Tunneler 4 | 2 . . . 1 . . . . . . . . . 1 Hauler 1 | . . . . . . . 1 . . . . . . . Recycler 2 | . . . . . . . . . 1 . . . . 1 Operator 2 | . 1 . . 1 . . . . . . . . . . Watcher 3 | . 2 . . . . . 1 . . . . . . . Swarmer 20 | . 5 . . 4 . 7 . . . . . 4 . . Saboteur 2 | . . . . . . . . . . . . 2 . . Grunt 11 | . 2 . . 2 . . . . . . . 4 1 2 Brawler 1 | . . . . 1 . . . . . . . . . . Sentry 2 | . . . . . . . 1 . . . . . . 1 Hunter 1 | . . . . 1 . . . . . . . . . . Programmer 9 | . . . . 1 . . 2 . 1 . . . 2 3 Subdweller 3 | . . 3 . . . . . . . . . . . . Decomposer 3 | . . . . . 3 . . . . . . . . . Best Kill Streak 7 | 2 4 1 . 4 . 4 2 . 2 . . 7 2 3 Combat Bots Only 7 | . 3 1 . 4 . 4 2 . 1 . . 7 2 3 Max Kills in Single Turn 4 | 1 1 1 . 4 1 1 1 . 1 . . 4 1 1 Gunslinging . | . . . . . . . . . . . . . . . Exploded 4 | . . . . 4 . . . . . . . 4 . . Melee 1 | . . . . . . 1 1 . 1 . . . 1 1 Uniques/NPCs Destroyed . | . . . . . . . . . . . . . . . Combat | -11 -10 -10 -8 -6 -6 -6 -5 -5 -5 -5 -5 -5 -4 -4 -------- Run | Yrd Mat Sub Scr Fac Low Low Fac Was Fac Upp Upp War Pro Fac Hostile Shots Fired 678 | . 20 23 . 111 . 49 88 . 89 6 6 10 57 219 Missed 242 | . 4 12 . 33 . 10 37 . 40 2 3 3 24 74 Hits 436 | . 16 11 . 78 . 39 51 . 49 4 3 7 33 145 Projectile 436 | . 16 11 . 78 . 39 51 . 49 4 3 7 33 145 AOE 3 | . . . . . . . . . 2 . . . . 1 Critical Strikes 27 | . 1 . . 1 . 1 2 . 2 . . . 4 16 Actively Blocked 15 | . . . . . . . . . . . . . . 15 Part Disruptions 4 | . . . . . . . 1 . . . . . . 3 Damage Taken 8661 | . 132 227 . 1402 . 575 1200 . 1029 26 59 131 642 3238 Core 3004 | . 42 58 . 439 . 378 336 . 316 . 19 20 245 1151 Absorbed by Shields . | . . . . . . . . . . . . . . . Redirected to Shielding 46 | . . . . . . . . . . . . . 46 . Ignored by Resistances 2 | . . . . . . . 2 . . . . . . . Regen/Repaired (Parts) 122 | . . . . . . . . . 99 . . 23 . . Core Remaining (%) 42 | 100 . . 60 . . 3 . . . . . . 6 . Volleys Fired 102 | 7 19 21 . 21 . . . . . . . 13 2 19 Largest 2 | 2 2 2 . 2 . . . . . . . 1 1 1 Hottest 122 | 40 50 50 . 122 . . . . . . . 46 46 60 Shots Fired 166 | 14 37 42 . 39 . . . . . . . 13 2 19 Gun 72 | 14 26 21 . 5 . . . . . . . . . 6 Cannon 76 | . 11 21 . 31 . . . . . . . . . 13 Launcher 18 | . . . . 3 . . . . . . . 13 2 . Special . | . . . . . . . . . . . . . . . Kinetic 120 | 14 37 42 . 23 . . . . . . . . . 4 Thermal 8 | . . . . 8 . . . . . . . . . . Explosive 18 | . . . . 3 . . . . . . . 13 2 . Electromagnetic 7 | . . . . 5 . . . . . . . . . 2 Entropic 13 | . . . . . . . . . . . . . . 13 Robot Hit Streak 13 | 6 4 11 . 13 . . . . . . . . 1 6 Robot Miss Streak 3 | 2 2 2 . 3 . . . . . . . . . 2 Penetration Max 1 | . . . . 1 . . . . . . . . . 1 Secondary Targets 1 | . 1 . . . . . . . . . . . . . Max Gunslinging Chain 1 | . 1 . . . . . . . . . . . . . Shots Hit Robots 174 | 9 19 28 . 25 3 10 34 . 7 . . . 11 28 Core Hits 114 | 4 16 5 . 19 . 6 8 . 3 . . 39 5 9 Critical Kills 2 | 1 . 1 . . . . . . . . . . . . Critical Parts Destroyed 1 | . . . . . . . . . . . . . . 1 Critical Strikes 9 | 1 . 1 . 1 . . 1 . . . . . . 5 Destroy 3 | 1 . 1 . . . . . . . . . . . 1 Blast 1 | . . . . 1 . . . . . . . . . . Sever 2 | . . . . . . . 1 . . . . . . 1 Sunder 3 | . . . . . . . . . . . . . . 3 Melee Attacks 187 | . . . . . 3 21 76 . 20 4 3 . 19 41 Impact . | . . . . . . . . . . . . . . . Slashing 160 | . . . . . 2 19 74 . 20 4 3 . 10 28 Piercing 27 | . . . . . 1 2 2 . . . . . 9 13 Sneak Attacks 13 | . . . . . 3 1 2 . 5 . . . . 2 Combat Hostiles . | . . . . . . . . . . . . . . . Follow-up Attacks 10 | . . . . . . . 5 . . . . . 3 2 Damage Inflicted 8491 | 89 208 331 . 1015 248 405 1384 . 504 . . 2404 552 1351 Guns 575 | 89 131 122 . 83 . . . . . . . . . 150 Cannons 1463 | . 77 209 . 609 . . . . . . . . . 568 Explosions 2846 | . . . . 323 . . . . . . . 2404 119 . Melee 3602 | . . . . . 248 405 1384 . 504 . . . 433 628 Ramming 5 | . . . . . . . . . . . . . . 5 Kinetic 1126 | 89 208 331 . 395 . . . . . . . . . 103 Thermal 251 | . . . . 251 . . . . . . . . . . Explosive 2846 | . . . . 323 . . . . . . . 2404 119 . Electromagnetic 93 | . . . . 46 . . . . . . . . . 47 Impact . | . . . . . . . . . . . . . . . Slashing 3030 | . . . . . 153 405 1334 . 504 . . . 286 348 Piercing 572 | . . . . . 95 . 50 . . . . . 147 280 Entropic 568 | . . . . . . . . . . . . . . 568 Highest Corruption 14 | . . . . . . . 2 2 2 2 2 2 7 14 Average Corruption 3 | . . . . . . . 1 2 2 2 2 2 5 9 Corruption Purged . | . . . . . . . . . . . . . . . Corruption Blocked . | . . . . . . . . . . . . . . . Effects 40 | . . . . . . . 6 . 9 3 3 1 8 10 Message Errors 10 | . . . . . . . . . 3 1 3 . 1 2 Matter Fused 10 | . . . . . . . 3 . 4 1 . . 1 1 Heat Flow Errors 4 | . . . . . . . 1 . 1 1 . . . 1 Energy Discharges 4 | . . . . . . . . . . . . . 2 2 Parts Rejected 2 | . . . . . . . . . . . . . 1 1 Data Loss (minor) 4 | . . . . . . . . . . . . . 2 2 Data Loss (major) 6 | . . . . . . . 2 . 1 . . 1 1 1 Overload Shots . | . . . . . . . . . . . . . . . Overflow Damage 739 | . . . . 39 200 36 74 . 140 . . 52 46 152 Projectiles 59 | . . . . 10 . . . . . . . . . 49 Explosions 81 | . . . . 29 . . . . . . . 52 . . Melee 599 | . . . . . 200 36 74 . 140 . . . 46 103 Knockbacks 7 | . . 6 . 1 . . . . . . . . . . Impact . | . . . . . . . . . . . . . . . Kinetic 7 | . . 6 . 1 . . . . . . . . . . Secondary . | . . . . . . . . . . . . . . . Self-Inflicted Damage 90 | . . . . 56 . . . . . . . . 32 2 Shots 3 | . . . . 2 . . . . . . . . 1 . Rammed 1 | . . . . . . . . . . . . . . 1 Targets Rammed 1 | . . . . . . . . . . . . . . 1 Kicked . | . . . . . . . . . . . . . . . Crushed . | . . . . . . . . . . . . . . . Highest Temperature 319 | . 20 . . 156 . . 191 68 163 212 13 319 7 239 Average Temperature 62 | . 8 . . 52 . . 46 31 51 62 2 152 7 58 Received Heat Transfer 912 | . 12 63 . 174 . . 135 . 72 . 27 36 42 351 Effects 2 | . . . . . . . . . . 1 . 1 . . Energy Bleed 1 | . . . . . . . . . . 1 . . . . Short Circuit 1 | . . . . . . . . . . . . 1 . . Siege Activations . | . . . . . . . . . . . . . . . Martial Activations . | . . . . . . . . . . . . . . . Shielding Activations . | . . . . . . . . . . . . . . . Robots Disrupted . | . . . . . . . . . . . . . . . Combat Hostiles . | . . . . . . . . . . . . . . . Robots Corrupted . | . . . . . . . . . . . . . . . Combat Hostiles . | . . . . . . . . . . . . . . . Parts Fried . | . . . . . . . . . . . . . . . Impact Corruptions . | . . . . . . . . . . . . . . . Robots Melted . | . . . . . . . . . . . . . . . Combat Hostiles . | . . . . . . . . . . . . . . . Parts Melted 1 | . . 1 . . . . . . . . . . . . Heat Transferred 296 | . . . . 296 . . . . . . . . . . Parts Sabotaged . | . . . . . . . . . . . . . . . Parts Stolen . | . . . . . . . . . . . . . . . Parts Stripped . | . . . . . . . . . . . . . . . Power Chain Reactions . | . . . . . . . . . . . . . . . Alert | -11 -10 -10 -8 -6 -6 -6 -5 -5 -5 -5 -5 -5 -4 -4 ------- Run | Yrd Mat Sub Scr Fac Low Low Fac Was Fac Upp Upp War Pro Fac Maximum Alert Level 1 | . . . . 1 . . . . . . . . . . Low Security (%) 97 | 100 100 . . 90 . . 100 100 100 . . . . 100 Level 1 2 | . . . . 9 . . . . . . . . . . Level 2 . | . . . . . . . . . . . . . . . Level 3 . | . . . . . . . . . . . . . . . Level 4 . | . . . . . . . . . . . . . . . Level 5 . | . . . . . . . . . . . . . . . High Security . | . . . . . . . . . . . . . . . Max Security . | . . . . . . . . . . . . . . . Peak Influence 321 | 5 88 . . 321 . . 159 55 75 . . . . 61 Initial 56 | . . . . . . . 56 55 10 . . . . . Average 34 | 1 32 . . 59 . . 34 36 9 . . . . 21 Influence Increases 2522 | 10 262 . . 570 . 160 499 . 207 . . 275 115 424 Destroy 0b10 Robot/C 980 | . 140 . . 240 . 140 60 . 20 . . 200 60 120 Destroy 0b10 Robot/NC 105 | 10 15 . . 35 . . 15 . 20 . . . . 10 Destroy Leader 210 | . 34 . . 82 . 20 24 . 10 . . . 10 30 Allied During Kill 34 | . . . . 32 . . . . . . . . . 2 Successful Hack 172 | . 28 . . 5 . . 82 . 45 . . . . 12 Disable Machine 165 | . 30 . . 90 . . 45 . . . . . . . Destroy Structure 196 | . . . . 86 . . 48 . 22 . . . . 40 Lose Combat Pursuer 660 | . 15 . . . . . 225 . 90 . . 75 45 210 Influence Decreases 2499 | 10 262 . . 391 127 121 431 144 155 67 . 42 348 401 Entered New Map 481 | . . . . . 67 11 35 104 5 26 . . 233 . Time Decay 1473 | 10 262 . . 241 60 60 324 40 110 41 . 42 85 198 Lost Part 456 | . . . . 130 . 50 33 . 30 . . . 30 183 Lost Ally 50 | . . . . 20 . . . . 10 . . . . 20 Purge Threat 39 | . . . . . . . 39 . . . . . . . Squads Dispatched 30 | . 1 . . 4 . . 12 . 9 . . . . 4 Investigation 16 | . . . . 1 . . 6 . 6 . . . . 3 Extermination 8 | . . . . 1 . . 5 . 1 . . . . 1 Reinforcement 6 | . 1 . . 2 . . 1 . 2 . . . . . Assault . | . . . . . . . . . . . . . . . Garrison . | . . . . . . . . . . . . . . . Intercept . | . . . . . . . . . . . . . . . Searches Triggered . | . . . . . . . . . . . . . . . Construction Impeded 1 | . . . . 1 . . . . . . . . . . Haulers Reinforced . | . . . . . . . . . . . . . . . Active Scanning Responses . | . . . . . . . . . . . . . . . Cargo Convoy Interrupts 1 | . . . . . . . 1 . . . . . . . Stealth | -11 -10 -10 -8 -6 -6 -6 -5 -5 -5 -5 -5 -5 -4 -4 --------- Run | Yrd Mat Sub Scr Fac Low Low Fac Was Fac Upp Upp War Pro Fac Distress Signals 2 | . 1 . . . . . 1 . . . . . . . Communications Jammed 44 | . . . . . . . . . 44 . . . . . Distress Signals 11 | . . . . . . . . . 11 . . . . . Times Spotted 190 | . 11 4 . 26 1 7 26 6 26 1 7 35 6 34 Peak Tracking Total 18 | . 4 2 . 10 1 4 8 6 9 1 5 18 3 8 Tactical Retreats 27 | . 1 . . . . . 5 2 3 . 1 3 2 10 Traps | -11 -10 -10 -8 -6 -6 -6 -5 -5 -5 -5 -5 -5 -4 -4 ------- Run | Yrd Mat Sub Scr Fac Low Low Fac Was Fac Upp Upp War Pro Fac Traps Triggered 2 | . . . . . . . 2 . . . . . . . Indirectly . | . . . . . . . . . . . . . . . Trap Hack Attempts . | . . . . . . . . . . . . . . . Triggered . | . . . . . . . . . . . . . . . Disarmed . | . . . . . . . . . . . . . . . Reprogrammed . | . . . . . . . . . . . . . . . Reused . | . . . . . . . . . . . . . . . Traps Extracted . | . . . . . . . . . . . . . . . Installed . | . . . . . . . . . . . . . . . Triggered . | . . . . . . . . . . . . . . . Most Traps Carried 3 | . . . 3 3 3 1 . . . . . . . . Machines | -11 -10 -10 -8 -6 -6 -6 -5 -5 -5 -5 -5 -5 -4 -4 ---------- Run | Yrd Mat Sub Scr Fac Low Low Fac Was Fac Upp Upp War Pro Fac Machines Disabled 11 | . 2 . . 6 . . 3 . . . . . . . Max in Single Turn 1 | . 1 . . 1 . . 1 . . . . . . . Garrison Access 1 | . . . . . . . . . . . . . . 1 Machines Repaired . | . . . . . . . . . . . . . . . Machines Dismantled . | . . . . . . . . . . . . . . . Machines Sabotaged . | . . . . . . . . . . . . . . . Overloaded Fab Kills . | . . . . . . . . . . . . . . . Hacking | -11 -10 -10 -8 -6 -6 -6 -5 -5 -5 -5 -5 -5 -4 -4 --------- Run | Yrd Mat Sub Scr Fac Low Low Fac Was Fac Upp Upp War Pro Fac Machines Accessed 50 | . 6 . 3 3 1 . 15 . 14 . . 2 . 6 Terminals 21 | . 4 . . 2 1 . 6 . 6 . . . . 2 Fabricators 5 | . . . . . . . 3 . 2 . . . . . Repair Stations 2 | . . . . . . . . . 2 . . . . . Recycling Units 15 | . 2 . . 1 . . 6 . 3 . . . . 3 Scanalyzers . | . . . . . . . . . . . . . . . Garrison Access 2 | . . . . . . . . . 1 . . . . 1 Total Hacks 136 | . 19 . 17 6 1 . 34 . 42 . . 2 . 15 Successful 83 | . 9 . 17 3 1 . 21 . 22 . . 2 . 8 Failed 52 | . 10 . . 3 . . 13 . 19 . . . . 7 Catastrophic 5 | . 1 . . . . . 3 . . . . . . 1 Database Lockouts 1 | . . . . . . . . . 1 . . . . . Manual 73 | . 15 . . 5 . . 22 . 23 . . . . 8 Terminals 70 | . 16 . . 5 1 . 16 . 26 . . . . 6 Fabricators 9 | . . . . . . . 5 . 4 . . . . . Repair Stations 2 | . . . . . . . . . 2 . . . . . Recycling Units 33 | . 3 . . 1 . . 13 . 8 . . . . 8 Scanalyzers . | . . . . . . . . . . . . . . . Garrison Access 3 | . . . . . . . . . 2 . . . . 1 Terminal Hacks 37 | . 5 . 17 1 1 . 4 . 7 . . 2 . . Record 18 | . . . 15 1 1 . . . 1 . . . . . Robot Analysis 3 | . 3 . . . . . . . . . . . . . Prototype ID Bank 5 | . 1 . . . . . 1 . 3 . . . . . Open Door 3 | . . . 1 . . . . . . . . 2 . . Branch Access Points 2 | . . . . . . . 1 . 1 . . . . . Alert Level 1 | . . . . . . . . . 1 . . . . . Unreport Threat 1 | . . . . . . . 1 . . . . . . . Locate Traps 1 | . . . . . . . 1 . . . . . . . Reprogram Traps 1 | . . . . . . . . . 1 . . . . . Recall Investigation 1 | . 1 . . . . . . . . . . . . . Proto ID Catalog 1 | . . . 1 . . . . . . . . . . . Fabricator Hacks 3 | . . . . . . . 1 . 2 . . . . . Network Status 1 | . . . . . . . . . 1 . . . . . Build 2 | . . . . . . . 1 . 1 . . . . . Repair Station Hacks . | . . . . . . . . . . . . . . . Recycling Unit Hacks 14 | . 2 . . . . . 5 . 4 . . . . 3 Report Inventory 2 | . . . . . . . 1 . 1 . . . . . Retrieve Components 12 | . 2 . . . . . 4 . 3 . . . . 3 Scanalyzer . | . . . . . . . . . . . . . . . Garrison Access Hacks 1 | . . . . . . . . . . . . . . 1 Seal Access 1 | . . . . . . . . . . . . . . 1 Unauthorized Hacks 28 | . 2 . . 2 . . 11 . 9 . . . . 4 Terminals 12 | . 2 . . 1 . . 4 . 4 . . . . 1 Assimilate 3 | . . . . 1 . . . . 2 . . . . . Botnet 9 | . 2 . . . . . 4 . 2 . . . . 1 Fabricators 1 | . . . . . . . 1 . . . . . . . Fabnet 1 | . . . . . . . 1 . . . . . . . Repair Stations 2 | . . . . . . . . . 2 . . . . . Patch 2 | . . . . . . . . . 2 . . . . . Recycling Units 13 | . . . . 1 . . 6 . 3 . . . . 3 Fedlink 13 | . . . . 1 . . 6 . 3 . . . . 3 Scanalyzers . | . . . . . . . . . . . . . . . Garrison Access . | . . . . . . . . . . . . . . . Data Cores Recovered 1 | . 1 . . . . . . . . . . . . . Used . | . . . . . . . . . . . . . . . Hacking Detections 32 | . 5 . . 2 1 . 10 . 11 . . . . 3 Full Trace Events 1 | . . . . . . . . . 1 . . . . . Feedback Events . | . . . . . . . . . . . . . . . Feedback Blocked . | . . . . . . . . . . . . . . . Robot Schematics Acquired . | . . . . . . . . . . . . . . . Robots Built . | . . . . . . . . . . . . . . . Authchips . | . . . . . . . . . . . . . . . Time . | . . . . . . . . . . . . . . . Total Robot Build Rating . | . . . . . . . . . . . . . . . Part Schematics Acquired . | . . . . . . . . . . . . . . . Parts Built 4 | . . . . . . . 2 . 2 . . . . . Authchips . | . . . . . . . . . . . . . . . Time 104 | . . . . . . . 58 . 46 . . . . . Total Part Build Rating 32 | . . . . . . . 14 . 18 . . . . . Parts Repaired . | . . . . . . . . . . . . . . . Time . | . . . . . . . . . . . . . . . Parts Recycled . | . . . . . . . . . . . . . . . Recycled Matter . | . . . . . . . . . . . . . . . Retrieved Matter . | . . . . . . . . . . . . . . . Retrieved Components 20 | . 11 . . . . . 4 . 3 . . . . 2 Parts Scanalyzed . | . . . . . . . . . . . . . . . Part Schematics Acquired . | . . . . . . . . . . . . . . . Parts Damaged . | . . . . . . . . . . . . . . . Bothacking | -11 -10 -10 -8 -6 -6 -6 -5 -5 -5 -5 -5 -5 -4 -4 ------------ Run | Yrd Mat Sub Scr Fac Low Low Fac Was Fac Upp Upp War Pro Fac Used RIF Installer . | . . . . . . . . . . . . . . . Robots Hacked 1 | . . . . . . . . . . . . . . 1 Non-combat . | . . . . . . . . . . . . . . . Combat 1 | . . . . . . . . . . . . . . 1 Robot Hacks Applied . | . . . . . . . . . . . . . . . Relay Couplers Released . | . . . . . . . . . . . . . . . Fabnet Peak Effective % 3 | . . . . . . . . . . . . . 3 3 Autooverrided 1 | . . . . . . . . . . . . . . 1 Robots Rewired . | . . . . . . . . . . . . . . . Allies Hacked . | . . . . . . . . . . . . . . . Hacks Repelled . | . . . . . . . . . . . . . . . Allies | -11 -10 -10 -8 -6 -6 -6 -5 -5 -5 -5 -5 -5 -4 -4 -------- Run | Yrd Mat Sub Scr Fac Low Low Fac Was Fac Upp Upp War Pro Fac Total Allies 4 | . . . 1 . . . . . 2 . . . . 1 Largest Group 1 | . . . 1 1 . . . . 1 . . . . 1 Highest-Rated Group 54 | . . . 53 53 . . . . 10 . . . . 54 Highest-Rated Ally 54 | . . . 53 53 . . . . 10 . . . . 54 Total Orders . | . . . . . . . . . . . . . . . Ally Attacks 26 | . . . . 24 . . . . . . . . . 2 Total Damage 1471 | . . . . 1462 . . . . . . . . . 9 Kills 7 | . . . . 7 . . . . . . . . . . Allies Corrupted . | . . . . . . . . . . . . . . . Allies Melted . | . . . . . . . . . . . . . . . Intel | -11 -10 -10 -8 -6 -6 -6 -5 -5 -5 -5 -5 -5 -4 -4 ------- Run | Yrd Mat Sub Scr Fac Low Low Fac Was Fac Upp Upp War Pro Fac Active Infowar (turns) 5152 | 4 248 . . 883 . . 1165 90 495 286 195 843 479 464 Optics 3746 | . . . . . . . 904 90 487 286 195 843 479 462 Sensors 3050 | . . . . 883 . . 1051 90 420 286 195 125 . . Terrain 457 | 4 248 . . . . . 31 . . 161 . . . 13 Seismic 127 | . . . . . . . 127 . . . . . . . Cloaking 18 | . . . . . . . . . . . . . . 18 Jamming 457 | . . . . . . . 108 . 134 41 1 14 . 159 ECM 189 | . . . . 33 . . 21 . 39 4 4 . 36 52 Robot Analysis Total 3 | . 3 . . . . . . . . . . . . . Derelict Logs Recovered 9 | . . . 3 . 1 . . . . 2 1 . 2 . Drone Launches . | . . . . . . . . . . . . . . . Drone Recoveries . | . . . . . . . . . . . . . . . Exploration | -11 -10 -10 -8 -6 -6 -6 -5 -5 -5 -5 -5 -5 -4 -4 ------------- Run | Yrd Mat Sub Scr Fac Low Low Fac Was Fac Upp Upp War Pro Fac Turns Passed 10984 | 91 783 550 4135 893 134 120 1332 90 495 286 195 843 479 558 Spaces Moved 10103 | 39 314 253 2601 331 355 112 1557 171 779 678 339 1100 886 588 Core 19 | 4 . . . 3 . 2 . . . . . . . 10 Treads 2380 | 35 314 253 1437 328 . . . . . . . . . 13 Legs 1 | . . . . . . . . . . . . . . 1 Wheels 1164 | . . . 1164 . . . . . . . . . . . Hover 6006 | . . . . . . . 1489 171 779 678 339 1100 886 564 Flight 533 | . . . . . 355 110 68 . . . . . . . Fastest Speed 23 | 50 160 160 120 160 30 30 40 48 23 24 34 41 33 46 Average Speed 92 | 153 160 188 155 242 30 58 59 48 45 39 45 62 46 59 Slowest Speed 550 | 200 160 240 240 400 30 275 360 48 58 46 46 110 55 550 Overloaded Moves 143 | . . . . . . . . . 79 29 10 . 25 . Propulsion Burnouts . | . . . . . . . . . . . . . . . Robots Hopped . | . . . . . . . . . . . . . . . Potential Cave-ins . | . . . . . . . . . . . . . . . Cave-ins Triggered 1 | . . . . . . . . . 1 . . . . . Exploration Rate (%) 52 | 5 57 18 90 10 65 16 38 100 26 77 66 95 98 23 Regions Visited 14 Branch Regions 8 Pre-discovered Areas 1 | . . . . . . . 1 . . . . . . . Known Exits Taken 11 | . 1 1 1 1 1 1 . . 1 1 1 1 1 . Unknown Exits Taken 1 | 1 . . . . . . . . . . . . . . Scrap Searched 17 | . . 1 5 . 2 1 . . . 3 1 . 4 . Spaces Dug 57 | . . . . . . . 24 . 11 3 2 . 1 16 Terrain Destroyed 208 | . . . . 40 . . 24 . 11 3 2 89 19 20 Melee 57 | . . . . . . . 24 . 11 3 2 . 1 16 Projectile 5 | . . . . 1 . . . . . . . . . 4 AOE 146 | . . . . 39 . . . . . . . 89 18 . Terrain Rammed . | . . . . . . . . . . . . . . . Walls Destroyed . | . . . . . . . . . . . . . . . Machines Disabled . | . . . . . . . . . . . . . . . Actions | -11 -10 -10 -8 -6 -6 -6 -5 -5 -5 -5 -5 -5 -4 -4 --------- Run | Yrd Mat Sub Scr Fac Low Low Fac Was Fac Upp Upp War Pro Fac Total 11387 | 55 563 295 2701 381 381 138 1851 177 889 688 375 1247 926 720 Wait 711 | . 213 4 41 4 2 2 181 5 72 4 28 111 6 38 Move 10090 | 38 313 252 2600 330 354 111 1557 170 778 677 338 1099 885 588 Hop . | . . . . . . . . . . . . . . . Pick Up 70 | 1 10 9 26 3 5 . 3 1 3 2 . 4 1 2 Fast Attach 91 | 8 2 . 2 5 . 4 27 . 9 . 2 5 8 19 Attach 45 | . . 1 1 8 8 . 7 . 3 1 2 3 4 7 Detach 16 | 1 2 . . 2 1 1 2 . . . 2 3 . 2 Swap 18 | . 2 . 4 5 . . 2 1 . 1 . 1 . 2 Drop 81 | . 2 8 27 3 8 1 9 . 5 . 1 8 5 4 Fire 102 | 7 19 21 . 21 . . . . . . . 13 2 19 Melee 162 | . . . . . 3 19 63 . 19 3 2 . 15 38 Ram 1 | . . . . . . . . . . . . . . 1 Kick . | . . . . . . . . . . . . . . . Crush . | . . . . . . . . . . . . . . . Escape Stasis . | . . . . . . . . . . . . . . . Rewire . | . . . . . . . . . . . . . . . Trap . | . . . . . . . . . . . . . . . Miscellaneous . | . . . . . . . . . . . . . . . Route ------- -11/Scrapyard -10/Materials (discovered 4 exits: *Mat x2 / [*Min] / *Sub) -10/Subcaves (discovered 2 exits: *Mat / *Scr) -8/Scraptown (discovered 2 exits: *Fac x2) -6/Factory (discovered 3 exits: Fac / *Low / Ext) -6/Lower Caves -6/Lower Caves -5/Factory (discovered 3 exits: *Fac / Upp x2) -5/Waste -5/Factory (discovered 3 exits: *Fac / *Upp x2) -5/Upper Caves -5/Upper Caves (discovered 2 exits: *Fac / *War) -5/Warlord -4/Proximity Caves -4/Factory History --------- Turn | Location | Event 6 | -11/Scrapyard | Discovered new exit (range 16) 92 | -11/Scrapyard | Entered Materials 228 | -10/Materials | Discovered new exit (range 8) 287 | -10/Materials | Discovered new exit (range 9) 318 | -10/Materials | Build established: Mutant 363 | -10/Materials | Identified exit to Materials 522 | -10/Materials | Discovered exit to Materials (range 10) 864 | -10/Materials | Discovered new exit (range 7) 873 | -10/Materials | Identified exit to Subcaves 875 | -10/Materials | Entered Subcaves 876 | -10/Subcaves | Approached by a straggling Scientist 892 | -10/Subcaves | A swath of the cavern ceiling suddenly collapsed 1055 | -10/Subcaves | Scientist uncovered a shortcut to Scraptown 1074 | -10/Subcaves | Identified exit to Scraptown 1220 | -10/Subcaves | Discovered new exit (range 10) 1240 | -10/Subcaves | Identified exit to Materials 1244 | -10/Subcaves | Shifting Twisted Machinery released Scrap Shield 1244 | -10/Subcaves | Shifting Twisted Machinery released Sub. Shrapnel Launcher 1425 | -10/Subcaves | Entered Scraptown 1461 | -8/Scraptown | Heard Great Nut preacher, LISTEN AND RECITE! 1694 | -8/Scraptown | Visited Assassins FH 1745 | -8/Scraptown | Visited Spacefarers 1817 | -8/Scraptown | Visited Bundlers 2049 | -8/Scraptown | Received an X-ray algorithm 2079 | -8/Scraptown | Visited CPS Storage 2100 | -8/Scraptown | Visited Shadow of the Wyrm 2132 | -8/Scraptown | Scanned Subdweller tech in exchange for log data 2138 | -8/Scraptown | Learned location of 1 exit from Factory 2149 | -8/Scraptown | Discovered new exit (range 11) 2208 | -8/Scraptown | Identified exit to Factory 2616 | -8/Scraptown | Visited Science Testing Area 2700 | -8/Scraptown | Visited SPCMW 2734 | -8/Scraptown | Visited UFD Registry 2734 | -8/Scraptown | Registered with UFD as "Steamtalker" 2761 | -8/Scraptown | Visited Science Guys 2817 | -8/Scraptown | Visited Botcube Research 2827 | -8/Scraptown | Found Botcube 3288 | -8/Scraptown | Botcube activated 3302 | -8/Scraptown | Botcube completed mutation into legged form, armed with 1 cannon, 1 launcher. 3447 | -8/Scraptown | Visited Scrap Suit Storage 3843 | -8/Scraptown | Visited Derelict Rescue Squad 3905 | -8/Scraptown | Visited Junk Repository 3978 | -8/Scraptown | Visited Sword Containment 4058 | -8/Scraptown | Visited Junk Repository 4125 | -8/Scraptown | Visited Supply Room 4965 | -8/Scraptown | Delivered Scrap Shield to a Scientist 5428 | -8/Scraptown | Met Optimus 5428 | -8/Scraptown | Accepted into 0bPrime 5548 | -8/Scraptown | Discovered exit to Factory (range 3) 5560 | -8/Scraptown | Entered Factory 5560 | -6/Factory | Accompanied by 1 ally 5560 | -6/Factory | Evolved 8 slots: Propulsion x2, Utility x6 5561 | -6/Factory | Identified exit to Extension 5562 | -6/Factory | Identified exit to Factory 6062 | -6/Factory | Build established: Hacker-Mutant 6152 | -6/Factory | Found Prototype Processor 6152 | -6/Factory | Identified Exp. Targeting Computer 6166 | -6/Factory | Loaded intel: 8 recycling unit locations 6306 | -6/Factory | Discovered new exit (range 5) 6316 | -6/Factory | Identified exit to Lower Caves 6322 | -6/Factory | Spotted B-75 Beast 6339 | -6/Factory | Allies destroyed B-75 Beast 6453 | -6/Factory | Core integrity fell below 50% 6453 | -6/Factory | Entered Lower Caves 6455 | -6/Lower Caves | UFD Scientist delivered a prototype 6463 | -6/Lower Caves | Found Prototype Protection 6475 | -6/Lower Caves | Learned Factory emergency access door positions 6483 | -6/Lower Caves | Lost 12 parts (1p2n7u2w) 6514 | -6/Lower Caves | Identified Enh. Scrap Shield 6562 | -6/Lower Caves | Discovered new exit (range 11) 6577 | -6/Lower Caves | Identified exit to Lower Caves 6587 | -6/Lower Caves | Entered another Lower Caves area 6641 | -6/Lower Caves | Lost 4 parts (1p3n) 6649 | -6/Lower Caves | Discovered exit to Factory (range 9) 6666 | -6/Lower Caves | Core integrity fell below 20% 6707 | -6/Lower Caves | Entered Factory 6707 | -5/Factory | Evolved 2 slots: Propulsion x2 6708 | -5/Factory | Identified exit to Upper Caves 6892 | -5/Factory | Fabricated Imp. Gyrokinetic Inverter (x2) 7070 | -5/Factory | Lost 7 parts (1p3n2u1w) 7250 | -5/Factory | Discovered new exit (range 9) 7254 | -5/Factory | Identified exit to Factory 7273 | -5/Factory | Loaded intel: 8 recycling unit locations 7273 | -5/Factory | Learned location of Protoforge (-2) 7426 | -5/Factory | Cargo convoy interrupted 7535 | -5/Factory | Build established: Hacker-Ninja 8039 | -5/Factory | Sucked down chute 8039 | -5/Factory | Entered Waste 8043 | -5/Waste | Spotted C-40 Crusher 8045 | -5/Waste | Spotted C-40 Crusher 8049 | -5/Waste | Spotted C-40 Crusher 8059 | -5/Waste | Spotted C-40 Crusher 8077 | -5/Waste | Spotted C-40 Crusher 8083 | -5/Waste | Spotted C-40 Crusher 8111 | -5/Waste | Discovered new exit (range 12) 8122 | -5/Waste | Identified exit to Factory 8129 | -5/Waste | Entered Factory 8270 | -5/Factory | Fabricated Lgt. Quantum Reactor (x2) 8293 | -5/Factory | Ran an X-ray algorithm 8437 | -5/Factory | Discovered exit to Factory (range 14) 8448 | -5/Factory | Loaded intel: 8 recycling unit locations 8512 | -5/Factory | Core integrity fell below 50% 8548 | -5/Factory | Lost 8 parts (1p4n3u) 8589 | -5/Factory | Central database locked down 8610 | -5/Factory | Crushed by falling debris 8624 | -5/Factory | Entered Upper Caves 8777 | -5/Upper Caves | Learned Factory trap positions 8801 | -5/Upper Caves | Spotted B-75 Beast 8901 | -5/Upper Caves | Identified exit to Upper Caves 8910 | -5/Upper Caves | Entered another Upper Caves area 8917 | -5/Upper Caves | Discovered exit to Factory (range 19) 8951 | -5/Upper Caves | Learned 4 Factory zone layouts 8962 | -5/Upper Caves | Found Alien Artifact 8962 | -5/Upper Caves | Identified Core Expander 8962 | -5/Upper Caves | Installed Core Expander, added new Weapon slot 8981 | -5/Upper Caves | Ambushed by wild Derelicts 9070 | -5/Upper Caves | Encountered an infested base 9080 | -5/Upper Caves | Encountered a Warlord checkpoint 9098 | -5/Upper Caves | Discovered new exit (range 11) 9104 | -5/Upper Caves | Identified exit to Warlord 9105 | -5/Upper Caves | Entered Warlord 9149 | -5/Warlord | System corruption cleaned by Quarantine Array 9475 | -5/Warlord | Visited the Vortex Lab 9482 | -5/Warlord | Warlord's base attacked by MAIN.C 9486 | -5/Warlord | Found Prototype Energy Cannon 9486 | -5/Warlord | Identified Vortex Cannon 9492 | -5/Warlord | Found Vortex Cannon 9594 | -5/Warlord | Rebuked by Warlord 9667 | -5/Warlord | Opened side exit 9817 | -5/Warlord | Spotted B-86 Titan 9832 | -5/Warlord | Warlord forces counterattacked 9882 | -5/Warlord | Spotted Executioner 9883 | -5/Warlord | Spotted Executioner 9891 | -5/Warlord | Spotted Executioner 9910 | -5/Warlord | Destroyed 7 combat bots 9928 | -5/Warlord | Discovered new exit (range 11) 9947 | -5/Warlord | Identified exit to Proximity Caves 9948 | -5/Warlord | Entered Proximity Caves 9963 | -4/Proximity Caves | Learned location of 1 exit from Research 10160 | -4/Proximity Caves | Spotted B-86 Titan 10161 | -4/Proximity Caves | Core integrity fell below 20% 10164 | -4/Proximity Caves | Learned Research trap positions 10246 | -4/Proximity Caves | Lost 6 parts (2n2u2w) 10423 | -4/Proximity Caves | Discovered exit to Factory (range 8) 10427 | -4/Proximity Caves | Entered Factory 10427 | -4/Factory | Evolved 2 slots: Power x1, Utility x1 10429 | -4/Factory | Loaded intel: 96 trap records 10441 | -4/Factory | Loaded intel: 8 recycling unit locations 10537 | -4/Factory | Build established: Infiltrator-Gladiator 10744 | -4/Factory | Lost 4 parts (1p1n2w) 10789 | -4/Factory | System corruption reached 10% 10886 | -4/Factory | Lost 11 parts (2p2n5u2w) 10903 | -4/Factory | Core integrity fell below 50% 10906 | -4/Factory | Local machine network offline 10939 | -4/Factory | Core integrity fell below 20% 10985 | -4/Factory | Destroyed by G-67 Veteran with Field Laser Last Messages --------------- 10943_ ALERT: Security rotation in progress. 10944_ System corrupted: Energy discharge (-34). 10946_ P-70 Sage Antigrav System severed. 10947_ Adv. Medium Treads destroyed. 10949_ Destroyed Antigrav System. 10951_ Scythe destroyed. 10951_ Slammed into P-70 Sage. 10951_ P-70 Sage destroyed. 10953_ Acquired KE Penetrator. 10954_ Slug penetrates Wall. 10956_ Slug penetrates G-67 Veteran. 10960_ G-67 Veteran suffers critical hit (Destroy). 10960_ Destroyed Plasma Rifle. 10961_ KE Penetrator destroyed. 10963_ Acquired Imp. Treads. 10978_ OMVZNMEL RBLEQT3EEMQ 10980_ K-01 Serf collects debris. 10982_ Acquired Hpw. Shock Rifle. 10982_ K-01 Serf collects debris. Map ----- +----------------------------------------------------+ | ??????????????????# # "" # | | ??????????????????##########" G ^ ########? | | ???????????????????????????## "" ######### | | ????????????????????????????# " # | | ????????????????????????????# # | | ????????????????????????????# # | | ????????????????????????????######## # | | ???????????????????????????????????# # | | ???????????????????????????????????# # | | ???????????????????????????????????# + | | ???????????????????????????????????# # | | ???????????????????????????????????# # ! | | ???????????????????????????????????# + | | ?????????????????????????????#######+#+########### | | ?????????????????????????????# #?? | | ?????????????????????????????#""" """"" """"" #?? | | ?????????????????????????????#""" """"" """"" #?? | | ?????????????????????????????#"S """ """ #?? | | ?????????????????????????????#""" #?? | | ????????????????????????????## "" ! #?? | | ????????????????????????????#" #?? | | ??????????????????################################ | | ??????????????????#! #???????????????# | | ??????????????????# """" ##########??????# | | ??????????????????# gg""""! # #??????# | | ??????????????????# @""" # """ #??????# | | ??????????????????# "Y !*"%" ; """"" #??????# | | ??????????????????# "" !=k= % # """"" #?????## | | ??????????????????######k##|##### #######" | | ??????????############# %!###???# + "# | | ?????????? ## #?????# !! ### ## | | ?????????? ## #?????# ! ! #?# ## | | ??????????? ## #?????# #?# ## | | ?????????? = ## ###########+###### ### | | ????????? """" # | | ????????# [ """" # | | ????????# """" # | | ????????# = """" + = | | ????????# """" # % | | ????????# """" # ##########/######+##### | | ????????# / """" # #?????????????????????? | | ????????# # #?????????????????????" | | ????????############"# #????????????????? ""? | | ?????##############"## #????????????????? ""? | | ?????# # #??????????????#? | | ?????# """" ! # #??????????????# """ | | ?????# """" # #??????????????# ! """ | | ?????# """" # #??????????????# """ | | ?????# """" # #??????????????? | | ?????# """" # #??????????????? ??? | +----------------------------------------------------+ Best States ------------- Heat Dissipation 59 Energy Generation 51 Energy Capacity 1100 Matter Stores 300 Matter Capacity 300 Sight Range 22 Robot Scan Range 16 Terrain Scan Range 20 Terrain Scan Density 10 ECM Strength 2 Jamming Range 16 Cloak Strength 2 Power Amplification 30 Additional Mass Support 9 Armor Coverage 150 Resistance: TH 10 Propulsion Shielding 33 Melee Speed Boost 30 Evasion (%) 64 Recoil Reduction 2 Offensive Hacking 24 Defensive Hacking 12 Item Schematics ----------------- None Robot Schematics ------------------ None Fabricated ------------ Imp. Gyrokinetic Inverter | x2 | -5/Factory | Preloaded Lgt. Quantum Reactor | x2 | -5/Factory | Preloaded Repaired ---------- Nothing Alien Tech Used ----------------- Core Expander Achievements -------------- Party Time Challenges ------------ None Game ------ Seed HeavySmallTerrabomb Manual? 0 Play Time 01:57:30 Cumulative 100.4 hours Start 2025.07.09 @ 18:38:27 End 2025.07.10 @ 18:49:24 Sessions 3 Manual Loads 0 Difficulty Rogue Special Mode None Game No. 104 Rogue 104 Adventurer 0 Explorer 0 Win Type - Total 2 Types 1/0/1/0/0/0/0/0/0/0 Lore% 57 Gallery% 58 Achievement% 52 Wizard Run 0 Options --------- Layout 1 ASCII 0 Keyboard 0 Movement Numpad Keybinds 0 Fullscreen 1 Font 24/Smallcaps Map View 50x35 Zoom Use 0% Tactical HUD 1 Map Filters NONE Filters NONE Steam 1 RUN: 69b184ba-0513-49b0-afdb-d1dee488c1d9